bitfinex-derivatives/quotes_BNBF0:USTF0_20230901
["timestamp","ask_amount","ask_price","bid_price","bid_amount"]
[1693530430530,0.07504786,217.22,215.88,0.16911638]
[1693530430729,0.07504786,217.22,215.89,0.16911638]
[1693530430927,0.07504786,217.22,215.84,0.16911638]
[1693530431137,0.07504786,217.22,215.85,0.16911638]
[1693530431334,0.07504786,217.22,215.84,0.16911638]
[1693530431530,0.07504786,217.22,215.85,0.16911638]
[1693530431734,0.07504786,217.22,215.86,0.16911638]
[1693530431935,0.07504786,217.22,215.84,0.16911638]
[1693530432135,0.07504786,217.22,215.85,0.16911638]
[1693530432332,0.07504786,217.22,215.84,0.16911638]
[1693530434033,0.07504786,217.23,215.84,0.16911638]
[1693530434238,0.07504786,217.22,215.84,0.16911638]
[1693530439237,0.07504786,217.22,214.99,2.01899556]
[1693530439438,0.07504786,217.22,215.0,0.16920707]
[1693530440443,0.07504786,217.11,215.0,0.16920707]
[1693530444239,0.07504786,217.11,214.87,1.6684538]
[1693530447548,0.07504786,217.1,214.87,1.6684538]
[1693530458459,0.07504786,217.11,214.87,1.6684538]
[1693530462959,0.07504786,217.12,214.87,1.6684538]
[1693530465556,0.07504786,217.12,214.88,1.6684538]
[1693530469362,2.50159548,217.26,214.88,1.6684538]
[1693530469363,0.07504786,217.13,214.88,1.6684538]
[1693530470459,0.07504786,217.13,214.89,1.6684538]
[1693530470854,2.50159548,217.27,214.89,1.6684538]
[1693530471062,0.07514389,217.13,214.89,1.6684538]
[1693530476465,0.07514389,217.14,214.89,1.6684538]
[1693530476765,0.07514389,217.13,214.89,1.6684538]
[1693530477064,0.07514389,217.14,214.89,1.6684538]
[1693530477965,0.07514389,217.13,214.89,1.6684538]
[1693530480165,0.07514389,217.14,214.89,1.6684538]
[1693530481867,0.07514389,217.13,214.89,1.6684538]
[1693530482167,0.07514389,217.14,214.89,1.6684538]
[1693530482359,0.07514389,217.13,214.89,1.6684538]
[1693530482563,0.07514389,217.14,214.89,1.6684538]
[1693530482760,0.07514389,217.13,214.89,1.6684538]
[1693530482961,0.07514389,217.14,214.89,1.6684538]
[1693530490572,0.07514389,217.13,214.89,1.6684538]
[1693530496177,0.07514389,217.12,214.89,1.6684538]
[1693530504078,0.07514389,217.11,214.89,1.6684538]
[1693530508184,0.07514389,217.11,214.88,1.6684538]
[1693530510381,0.07514389,217.12,214.88,1.6684538]
[1693530530705,0.07514389,217.12,214.89,1.6684538]
[1693530531303,0.07514389,217.13,214.89,1.6684538]
[1693530535109,0.07514389,217.13,214.9,1.6684538]
[1693530535510,0.07514389,217.14,214.9,1.6684538]
[1693530557030,0.07514389,217.15,214.9,1.6684538]
[1693530557529,0.07514389,217.16,214.9,1.6684538]
[1693530558328,0.07514389,217.15,214.9,1.6684538]
[1693530558522,0.07514389,217.16,214.9,1.6684538]
[1693530561133,0.07514389,217.16,214.92,1.6684538]
[1693530564227,0.07514389,217.15,214.92,1.6684538]
[1693530564531,0.07514389,217.16,214.92,1.6684538]
[1693530565332,0.07514389,217.15,214.92,1.6684538]
[1693530565532,0.07514389,217.15,214.93,0.16920707]
[1693530565735,0.07514389,217.15,214.94,0.16920707]
[1693530565935,0.07514389,217.15,214.91,1.6684538]
[1693530579641,0.07514389,217.14,214.91,1.6684538]
[1693530591559,0.50095932,217.19,214.91,1.6684538]
[1693530591560,0.07514389,217.13,214.91,1.6684538]
[1693530592364,0.07514389,217.14,214.92,0.16920707]
[1693530592564,0.07514389,217.14,214.93,0.16920707]
[1693530592765,0.07514389,217.14,214.9,1.6684538]
[1693530593466,0.07514389,217.13,214.9,1.6684538]
[1693530594859,0.07514389,217.14,214.9,1.6684538]
[1693530595462,0.07514389,217.13,214.9,1.6684538]
[1693530595662,0.07514389,217.14,214.9,1.6684538]
[1693530596263,0.07514389,217.13,214.9,1.6684538]
[1693530604473,0.07514389,217.13,214.89,1.6684538]
[1693530613177,0.07514389,217.14,214.89,1.6684538]
[1693530615780,0.07514389,217.14,214.9,1.83766087]
[1693530615981,0.07514389,217.14,214.91,0.16920707]
[1693530616178,0.07514389,217.14,214.92,0.16920707]
[1693530616378,0.07514389,217.14,214.9,1.6684538]
[1693530617879,0.07514389,217.13,214.9,1.6684538]
[1693530618075,0.07514389,217.14,214.9,1.6684538]
[1693530618678,0.07514389,217.13,214.9,1.6684538]
[1693530619182,0.07514389,217.14,214.9,1.6684538]
[1693530619382,0.07514389,217.13,214.9,1.6684538]
[1693530623382,0.07514389,217.14,214.9,1.6684538]
[1693530623576,0.07514389,217.15,214.9,1.6684538]
[1693530623779,0.07514389,217.16,214.9,1.6684538]
[1693530626786,0.07514389,217.16,214.92,1.6684538]
[1693530627883,0.07514389,217.17,214.92,1.6684538]
[1693530635692,0.07514389,217.16,214.92,1.6684538]
[1693530638092,0.07514389,217.16,214.93,0.16920707]
[1693530638288,0.07514389,217.16,214.91,1.6684538]
[1693530655705,0.07514389,217.15,214.91,1.6684538]
[1693530666013,2.50479663,217.28,214.91,1.6684538]
[1693530666214,0.07513364,217.15,214.91,1.6684538]
[1693530668913,0.07513364,217.15,214.92,1.6684538]
[1693530678518,0.07513364,217.14,214.92,1.6684538]
[1693530692031,0.07513364,217.14,214.91,1.6684538]
[1693530703439,0.07513364,217.14,214.92,1.83766087]
[1693530703635,0.07513364,217.14,214.92,1.6684538]
[1693530705635,0.07513364,217.12,214.92,1.6684538]
[1693530706741,0.07513364,217.13,214.92,1.6684538]
[1693530707543,0.07513364,217.13,214.93,0.16920707]
[1693530707739,0.07513364,217.13,214.94,0.16920707]
[1693530708044,0.07513364,217.13,214.95,0.16920707]
[1693530708344,0.07513364,217.13,214.96,0.16920707]
[1693530708537,0.07513364,217.13,214.97,0.16920707]
[1693530708737,0.07513364,217.13,214.89,1.6684538]
[1693530709543,0.07513364,217.14,214.89,1.6684538]
[1693530713244,0.07513364,217.15,214.89,1.6684538]
[1693530713744,0.07513364,217.14,214.89,1.6684538]
[1693530714044,0.07513364,217.15,214.89,1.6684538]
[1693530715641,0.07513364,217.15,214.9,1.83766087]
[1693530715842,0.07513364,217.15,214.91,0.16920707]
[1693530716041,0.07513364,217.15,214.92,0.16920707]
[1693530716241,0.07513364,217.15,214.93,0.16920707]
[1693530716445,0.07513364,217.15,214.94,0.16920707]
[1693530716646,0.07513364,217.15,214.95,0.16920707]
[1693530716943,0.07513364,217.15,214.96,0.16920707]
[1693530717143,0.07513364,217.15,214.9,1.6684538]
[1693530720543,0.07513364,217.14,214.9,1.6684538]
[1693530721248,0.07513364,217.15,214.9,1.6684538]
[1693530731552,0.15026729,217.18,214.9,1.6684538]
[1693530731553,0.07513364,217.16,214.9,1.6684538]
[1693530735355,0.07513364,217.16,214.92,1.6684538]
[1693530735549,0.07513364,217.17,214.92,1.6684538]
[1693530736353,0.07513364,217.16,214.92,1.6684538]
[1693530737452,0.07513364,217.17,214.92,1.6684538]
[1693530737650,0.07513364,217.16,214.92,1.6684538]
[1693530739448,0.07513364,217.17,214.92,1.6684538]
[1693530743153,0.07513364,217.21,214.92,1.6684538]
[1693530743359,0.07513364,217.23,214.92,1.6684538]
[1693530743563,0.07513364,217.26,214.92,1.6684538]
[1693530744559,0.50089097,217.31,214.92,1.6684538]
[1693530744560,0.07513364,217.27,214.92,1.6684538]
[1693530745357,0.07513364,217.28,214.92,1.6684538]
[1693530746360,0.07513364,217.28,214.99,1.6684538]
[1693530746556,0.07513364,217.29,214.99,1.6684538]
[1693530748357,0.07513364,217.28,214.99,1.6684538]
[1693530749459,0.07513364,217.27,214.99,1.6684538]
[1693530749865,0.07513364,217.27,214.98,1.6684538]
[1693530751465,0.07513364,217.26,214.98,1.6684538]
[1693530752763,0.07513364,217.25,214.98,1.6684538]
[1693530754563,0.07513364,217.24,214.98,1.6684538]
[1693530756368,0.07513364,217.23,214.98,1.6684538]
[1693530758373,0.07513364,217.22,214.98,1.6684538]
[1693530760369,0.07513364,217.21,214.98,1.6684538]
[1693530762168,0.07513364,217.2,214.98,1.6684538]
[1693530763375,0.07513364,217.19,214.98,1.6684538]
[1693530764775,0.07513364,217.18,214.98,1.6684538]
[1693530764973,0.07513364,217.19,214.98,1.6684538]
[1693530765371,0.07513364,217.18,214.98,1.6684538]
[1693530766573,0.07513364,217.17,214.98,1.6684538]
[1693530769571,0.07513364,217.16,214.98,1.6684538]
[1693530772472,0.07513364,217.15,214.98,1.6684538]
[1693530774177,0.07513364,217.14,214.98,1.6684538]
[1693530775481,0.07513364,217.13,214.98,1.6684538]
[1693530776475,0.07513364,217.12,214.98,1.6684538]
[1693530777478,0.07513364,217.09,214.98,1.6684538]
[1693530778479,0.50089097,217.14,214.98,1.6684538]
[1693530778480,0.07513364,217.1,214.98,1.6684538]
[1693530781786,0.07513364,217.11,214.98,1.6684538]
[1693530783488,0.07513364,217.12,214.98,1.6684538]
[1693530785486,0.07513364,217.13,214.98,1.6684538]
[1693530786493,0.07513364,217.14,214.98,1.6684538]
[1693530788392,0.07513364,217.15,214.98,1.6684538]
[1693530788993,0.07513364,217.16,214.98,1.6684538]
[1693530789589,0.07513364,217.17,214.98,1.6684538]
[1693530790392,0.07513364,217.18,214.98,1.6684538]
[1693530791299,0.07513364,217.19,215.0,1.6684538]
[1693530791498,0.07513364,217.2,215.0,1.6684538]
[1693530792299,0.07513364,217.21,215.0,1.6684538]
[1693530793294,0.07513364,217.22,215.0,1.6684538]
[1693530794402,0.07513364,217.23,215.0,1.6684538]
[1693530795300,0.07513364,217.23,215.01,1.6684538]
[1693530795501,0.07513364,217.24,215.01,1.6684538]
[1693530796601,0.07513364,217.25,215.01,1.6684538]
[1693530804608,0.07513364,217.25,215.0,1.6684538]
[1693530814213,0.07513364,217.24,215.0,1.6684538]
[1693530816317,0.07513364,217.25,215.0,1.6684538]
[1693530820518,0.07513364,217.24,215.0,1.6684538]
[1693530827224,0.07513364,217.24,215.01,1.83766087]
[1693530827525,0.07513364,217.24,215.02,0.16920707]
[1693530827718,0.07513364,217.24,215.01,1.6684538]
[1693530845034,0.07513364,217.23,215.01,1.6684538]
[1693530845237,0.07513364,217.22,215.01,1.6684538]
[1693530845642,0.07513364,217.22,214.99,1.6684538]
[1693530846742,0.07513364,217.23,214.99,1.6684538]
[1693530852838,0.07513364,217.18,214.99,1.6684538]
[1693530853143,0.07513364,217.16,214.99,1.6684538]
[1693530853740,0.07513364,217.18,214.99,1.6684538]
[1693530854744,0.07513364,217.2,214.99,1.6684538]
[1693530855747,0.07513364,217.21,214.99,1.6684538]
[1693530856047,0.07513364,217.21,215.0,0.16920707]
[1693530856248,0.07513364,217.21,215.01,0.16920707]
[1693530856446,0.07513364,217.21,215.02,0.16920707]
[1693530856646,0.07513364,217.21,215.03,0.16920707]
[1693530856842,0.07513364,217.22,215.04,0.16920707]
[1693530857047,0.07513364,217.22,215.05,0.16920707]
[1693530857249,0.07513364,217.21,214.91,1.6684538]
[1693530858742,0.07513364,217.2,214.91,1.6684538]
[1693530859746,0.07513364,217.19,214.91,1.6684538]
[1693530860851,0.07513364,217.18,214.91,1.6684538]
[1693530862848,0.07513364,217.17,214.91,1.6684538]
[1693530863851,0.07513364,217.16,214.91,1.6684538]
[1693530865955,0.07513364,217.15,214.91,1.6684538]
[1693530867251,0.07513364,217.14,214.91,1.6684538]
[1693530868757,0.07513364,217.13,214.91,1.6684538]
[1693530870254,0.07513364,217.13,214.9,1.6684538]
[1693530870857,0.07513364,217.12,214.9,1.6684538]
[1693530872158,0.07513364,217.11,214.9,1.6684538]
[1693530873660,0.07513364,217.1,214.9,1.6684538]
[1693530875262,0.07513364,217.09,214.9,1.6684538]
[1693530877763,0.07513364,217.08,214.9,1.6684538]
[1693530879765,0.07513364,217.07,214.9,1.6684538]
[1693530881767,0.07513364,217.06,214.9,1.6684538]
[1693530883869,0.07513364,217.05,214.9,1.6684538]
[1693530884865,0.07513364,217.04,214.9,1.6684538]
[1693530886869,0.07513364,217.02,214.9,1.6684538]
[1693530887067,0.07513364,217.03,214.9,1.6684538]
[1693530887667,0.15026729,217.02,214.9,1.6684538]
[1693530887872,0.07513364,217.0,214.9,1.6684538]
[1693530889772,0.07513364,217.01,214.9,1.6684538]
[1693530892268,0.07513364,217.02,214.9,1.6684538]
[1693530893078,0.07513364,217.01,214.9,1.6684538]
[1693530893378,0.07513364,217.02,214.9,1.6684538]
[1693530894375,0.15026729,217.04,214.9,1.6684538]
[1693530894376,0.07513364,217.03,214.9,1.6684538]
[1693530895383,0.07513364,217.04,214.9,1.6684538]
[1693530897084,0.07513364,217.05,214.9,1.6684538]
[1693530898281,0.07513364,217.06,214.9,1.6684538]
[1693530898783,0.07513364,217.07,214.9,1.6684538]
[1693530899784,0.07513364,217.08,214.9,1.6684538]
[1693530902182,0.07513364,217.09,214.9,1.6684538]
[1693530903183,0.07513364,217.08,214.9,1.6684538]
[1693530903786,0.07513364,217.1,214.9,1.6684538]
[1693530904789,0.07513364,217.11,214.9,1.6684538]
[1693530905789,0.07513364,217.12,214.9,1.6684538]
[1693530906191,0.07513364,217.1,214.9,1.6684538]
[1693530906589,0.07513364,217.11,214.9,1.6684538]
[1693530906890,0.07513364,217.12,214.9,1.6684538]
[1693530907890,0.07513364,217.13,214.9,1.6684538]
[1693530908091,0.07513364,217.12,214.91,0.16920707]
[1693530908292,0.07513364,217.12,214.92,0.16920707]
[1693530908486,0.07513364,217.12,214.89,1.6684538]
[1693530908689,0.07513364,217.13,214.89,1.6684538]
[1693530911888,0.07513364,217.14,214.89,1.6684538]
[1693530916893,0.07513364,217.1,214.89,1.6684538]
[1693530917093,0.07513364,217.09,214.89,1.6684538]
[1693530917890,0.07513364,217.1,214.89,1.6684538]
[1693530918998,0.07513364,217.11,214.89,1.6684538]
[1693530919598,0.07513364,217.12,214.89,1.6684538]
[1693530920800,0.07513364,217.12,214.84,1.6684538]
[1693530921801,0.07513364,217.13,214.84,1.6684538]
[1693530923102,0.07513364,217.14,214.84,1.6684538]
[1693530925206,0.07513364,217.14,214.85,1.83766087]
[1693530925502,0.07513364,217.14,214.86,0.16920707]
[1693530925807,0.07513364,217.13,214.87,0.16920707]
[1693530926108,0.07513364,217.13,214.88,0.16920707]
[1693530926309,0.07513364,217.13,214.89,0.16920707]
[1693530926606,0.07513364,217.13,214.9,0.16920707]
[1693530926807,0.07513364,217.13,214.91,0.16920707]
[1693530927008,0.07513364,217.13,214.92,0.16920707]
[1693530927203,0.07513364,217.13,214.85,1.6684538]
[1693530928604,0.07513364,217.12,214.85,1.6684538]
[1693530928807,0.07513364,217.13,214.85,1.6684538]
[1693530929709,0.07513364,217.12,214.85,1.6684538]
[1693530930011,0.07513364,217.16,214.85,1.6684538]
[1693530933705,0.07513364,217.16,214.89,1.6684538]
[1693530938204,0.07513364,217.16,214.9,0.16920707]
[1693530938406,0.07513364,217.16,214.91,0.16920707]
[1693530938711,0.07513364,217.16,214.92,0.16920707]
[1693530938909,0.07513364,217.16,214.88,1.6684538]
[1693530940112,0.07513364,217.15,214.88,1.6684538]
[1693530941110,0.07513364,217.16,214.88,1.6684538]
[1693530942815,0.07513364,217.16,214.89,1.83766087]
[1693530943015,0.07513364,217.16,214.9,0.16920707]
[1693530943216,0.07513364,217.16,214.91,0.16920707]
[1693530943417,0.07513364,217.16,214.92,0.16920707]
[1693530943613,0.07513364,217.17,214.93,0.16920707]
[1693530943813,0.07513364,217.17,214.89,1.6684538]
[1693530953628,0.07513364,217.16,214.89,1.6684538]
[1693530954230,0.07513364,217.17,214.89,1.6684538]
[1693530954428,0.07513364,217.16,214.89,1.6684538]
[1693530958730,0.07513364,217.15,214.89,1.6684538]
[1693530961531,0.07513364,217.15,214.9,1.6684538]
[1693530962734,0.07513364,217.14,214.9,1.6684538]
[1693530963729,0.07513364,217.13,214.9,1.6684538]
[1693530964736,0.07513364,217.12,214.9,1.6684538]
[1693530966433,0.07513364,217.13,214.9,1.6684538]
[1693530973341,0.07513364,217.08,214.9,1.6684538]
[1693530973639,0.07513364,217.09,214.9,1.6684538]
[1693530974441,0.07513364,217.1,214.9,1.6684538]
[1693530975643,0.07513364,217.1,214.83,1.6684538]
[1693530976345,0.07513364,217.11,214.83,1.6684538]
[1693530978446,0.07513364,217.12,214.83,1.6684538]
[1693530980147,0.07513364,217.12,214.84,1.83766087]
[1693530980342,0.07513364,217.12,214.85,0.16920707]
[1693530980543,0.07513364,217.12,214.84,1.6684538]
[1693530981447,0.07513364,217.13,214.84,1.6684538]
[1693530983150,0.07513364,217.17,214.84,1.6684538]
[1693530983452,0.07513364,217.19,214.84,1.6684538]
[1693530984353,0.07513364,217.19,214.9,1.6684538]
[1693530985553,0.07513364,217.18,214.9,1.6684538]
[1693530988252,0.07513364,217.18,214.91,0.16920707]
[1693530988456,0.07513364,217.18,214.92,0.16920707]
[1693530988758,0.07513364,217.18,214.93,0.16920707]
[1693530989059,0.07513364,217.18,214.94,0.16920707]
[1693530989257,0.07513364,217.17,214.95,0.16920707]
[1693530989457,0.07513364,217.17,214.96,0.16920707]
[1693530989659,0.07513364,217.12,214.88,1.6684538]
[1693530989857,0.07513364,217.11,214.88,1.6684538]
[1693530990558,0.07513364,217.12,214.88,1.6684538]
[1693530991954,0.07513364,217.12,214.82,1.6684538]
[1693530992360,0.07513364,217.11,214.82,1.6684538]
[1693530994363,0.07513364,217.1,214.82,1.6684538]
[1693530995964,0.07513364,217.1,214.81,1.6684538]
[1693530996765,0.07513364,217.09,214.81,1.6684538]
[1693530998462,0.07513364,217.08,214.81,1.6684538]
[1693531000463,0.07513364,217.07,214.81,1.6684538]
[1693531002268,0.07513364,217.06,214.81,1.6684538]
[1693531005271,0.07513364,217.05,214.81,1.6684538]
[1693531007373,0.07513364,217.04,214.81,1.6684538]
[1693531017281,0.07513364,217.05,214.81,1.6684538]
[1693531018481,0.07513364,217.04,214.81,1.6684538]
[1693531020381,0.07513364,217.03,214.81,1.6684538]
[1693531021276,0.07513364,217.02,214.81,1.6684538]
[1693531021881,0.07513364,217.03,214.81,1.6684538]
[1693531022381,0.07513364,217.02,214.81,1.6684538]
[1693531023178,0.07513364,217.02,213.08,20.126953]
[1693531023381,0.07513364,217.01,213.08,20.126953]
[1693531024282,0.07513364,216.99,213.08,20.126953]
[1693531025381,0.50089097,217.04,213.08,20.126953]
[1693531025382,0.07513364,217.0,213.08,20.126953]
[1693531025582,0.07513364,217.0,214.82,1.6924531]
[1693531027480,0.07513364,217.01,214.82,1.6924531]
[1693531028284,0.07513364,217.02,214.82,1.6924531]
[1693531030387,0.07513364,217.03,214.82,1.6924531]
[1693531031385,0.07513364,217.04,214.82,1.6924531]
[1693531032382,0.07513364,217.05,214.82,1.6924531]
[1693531033387,0.07513364,217.04,214.82,1.6924531]
[1693531036189,0.07513364,217.03,214.82,1.6924531]
[1693531037790,0.07513364,217.04,214.82,1.6924531]
[1693531038187,0.07513364,217.04,214.83,0.16924531]
[1693531038385,0.07513364,217.03,214.84,0.16924531]
[1693531038589,0.07513364,217.03,214.85,0.16924531]
[1693531038790,0.07513364,217.04,214.86,0.16924531]
[1693531038988,0.07513364,217.04,214.87,0.16924531]
[1693531039185,0.07513364,217.04,214.8,1.6924531]
[1693531043892,0.07513364,217.05,214.8,1.6924531]
[1693531044189,0.07513364,217.04,214.8,1.6924531]
[1693531046390,0.07513364,217.05,214.8,1.6924531]
[1693531058302,2.5044548,217.18,214.8,1.6924531]
[1693531058504,0.07497262,217.05,214.8,1.6924531]
[1693531060098,0.07497262,217.04,214.8,1.6924531]
[1693531067712,0.07497262,217.03,214.8,1.6924531]
[1693531077321,0.07497262,217.02,214.8,1.6924531]
[1693531084329,0.07497262,217.03,214.8,1.6924531]
[1693531085623,0.07497262,217.04,214.8,1.6924531]
[1693531088028,0.07497262,217.05,214.81,1.6924531]
[1693531097233,0.07497262,216.99,214.81,1.6924531]
[1693531097537,0.07497262,216.95,214.81,1.6924531]
[1693531097734,0.07497262,216.98,214.82,0.16924531]
[1693531097935,0.07497262,216.98,214.83,0.16924531]
[1693531098137,0.07497262,216.98,214.71,1.6924531]
[1693531098733,0.07497262,217.0,214.71,1.6924531]
[1693531099735,0.07497262,217.01,214.71,1.6924531]
[1693531100739,0.07497262,217.02,214.71,1.6924531]
[1693531102142,0.07497262,217.02,214.72,1.6924531]
[1693531102541,0.07497262,217.01,214.72,1.6924531]
[1693531104739,0.07497262,217.0,214.72,1.6924531]
[1693531106546,0.49981747,217.04,214.23,0.16924531]
[1693531106547,0.07497262,216.99,214.71,1.6924531]
[1693531108242,0.07497262,216.98,214.71,1.6924531]
[1693531110648,0.07497262,216.97,214.71,1.6924531]
[1693531112649,0.07497262,216.96,214.71,1.6924531]
[1693531116650,0.07497262,216.95,214.71,1.6924531]
[1693531119552,0.07497262,216.94,214.71,1.6924531]
[1693531121948,0.07497262,216.93,214.71,1.6924531]
[1693531122251,0.07497262,216.94,214.71,1.6924531]
[1693531122646,0.07497262,216.93,214.71,1.6924531]
[1693531123653,0.07497262,216.92,214.71,1.6924531]
[1693531124955,0.07497262,216.92,214.7,1.6924531]
[1693531125249,0.07497262,216.91,214.7,1.6924531]
[1693531125854,0.07497262,216.9,214.7,1.6924531]
[1693531126756,0.07497262,216.89,214.7,1.6924531]
[1693531128755,0.07497262,216.88,214.7,1.6924531]
[1693531129554,0.07497262,216.86,214.7,1.6924531]
[1693531130749,0.07497262,216.85,214.7,1.6924531]
[1693531131555,0.07497262,216.82,214.7,1.6924531]
[1693531137658,0.07497262,216.83,214.7,1.6924531]
[1693531142761,0.07497262,216.84,214.7,1.6924531]
[1693531144762,0.07497262,216.85,214.7,1.6924531]
[1693531146663,0.07497262,216.86,214.7,1.6924531]
[1693531147569,0.07497262,216.87,214.7,1.6924531]
[1693531148671,0.07497262,216.88,214.7,1.6924531]
[1693531149772,0.07497262,216.89,214.7,1.6924531]
[1693531150472,0.07497262,216.9,214.7,1.6924531]
[1693531150770,0.07497262,216.91,214.7,1.6924531]
[1693531151573,0.07497262,216.92,214.7,1.6924531]
[1693531152474,0.07497262,216.93,214.7,1.6924531]
[1693531152676,0.07497262,216.94,214.7,1.6924531]
[1693531152974,0.07497262,216.94,214.71,1.86169841]
[1693531153274,0.07497262,216.94,214.72,0.16924531]
[1693531153473,0.07497262,216.94,214.71,1.6924531]
[1693531157572,0.07497262,216.93,214.71,1.6924531]
[1693531157773,0.07497262,216.89,214.71,1.6924531]
[1693531157977,0.07497262,216.88,214.71,1.6924531]
[1693531158373,0.14996799,216.9,214.71,1.6924531]
[1693531158576,0.07498399,216.88,214.71,1.6924531]
[1693531158780,0.07498399,216.9,214.71,1.6924531]
[1693531159172,0.07498399,216.91,214.71,1.6924531]
[1693531159577,0.07498399,216.92,214.71,1.6924531]
[1693531161577,0.07498399,216.93,214.71,1.6924531]
[1693531162176,0.07498399,216.93,214.65,1.6924531]
[1693531162380,0.07498399,216.94,214.65,1.6924531]
[1693531165577,0.07498399,216.95,214.65,1.6924531]
[1693531165778,0.07498399,216.98,214.65,1.6924531]
[1693531166078,0.07498399,217.0,214.65,1.6924531]
[1693531167081,0.07498399,217.0,214.71,1.6924531]
[1693531189502,0.07498399,216.99,214.71,1.6924531]
[1693531189700,0.07498399,217.0,214.71,1.6924531]
[1693531190603,0.07498399,216.99,214.71,1.6924531]
[1693531195614,0.07498399,216.98,214.71,1.6924531]
[1693531196213,0.07498399,216.99,214.71,1.6924531]
[1693531196413,0.07498399,216.98,214.71,1.6924531]
[1693531198514,0.07498399,216.97,214.71,1.6924531]
[1693531199519,0.07498399,216.96,214.71,1.6924531]
[1693531200714,0.07498399,216.94,214.71,1.6924531]
[1693531213725,0.07498399,217.03,214.77,1.6924531]
[1693531213925,0.07498399,217.04,214.77,1.6924531]
[1693531214928,0.07498399,217.05,214.77,1.6924531]
[1693531216830,0.07498399,217.04,214.77,1.6924531]
[1693531217829,0.07498399,217.03,214.79,1.6924531]
[1693531218028,0.07498399,217.03,214.79,1.86169841]
[1693531218229,0.07498399,217.03,214.8,0.16924531]
[1693531218429,0.07498399,217.03,214.81,0.16924531]
[1693531218626,0.07498399,217.04,214.82,0.16924531]
[1693531218831,0.07498399,217.04,214.83,0.16924531]
[1693531219033,0.07498399,217.04,214.84,0.16924531]
[1693531219231,0.07498399,217.03,214.79,1.6924531]
[1693531221834,0.07498399,217.03,214.77,1.6924531]
[1693531222634,0.07498399,217.04,214.77,1.6924531]
[1693531224538,0.07498399,217.05,214.77,1.6924531]
[1693531224838,0.07498399,217.04,214.77,1.6924531]
[1693531225739,0.07498399,217.05,214.77,1.6924531]
[1693531225935,0.07498399,217.05,214.78,1.86169841]
[1693531226134,0.07498399,217.05,214.79,0.16924531]
[1693531226439,0.07498399,217.05,214.8,0.16924531]
[1693531226641,0.07498399,217.04,214.81,0.16924531]
[1693531226940,0.07498399,217.04,214.82,0.16924531]
[1693531227142,0.07498399,217.04,214.83,0.16924531]
[1693531227340,0.07498399,217.04,214.84,0.16924531]
[1693531227640,0.07498399,217.04,214.85,0.16924531]
[1693531227836,0.07498399,217.04,214.78,1.6924531]
[1693531230737,0.07498399,217.03,214.78,1.6924531]
[1693531232337,0.07498399,217.02,214.78,1.6924531]
[1693531233143,0.07498399,217.03,214.78,1.6924531]
[1693531233539,1.682115,219.47,214.79,1.86169841]
[1693531233838,3.48889033,217.19,214.8,0.16924531]
[1693531234045,0.07476193,217.03,214.81,0.16924531]
[1693531234241,0.07476193,217.03,214.82,0.16924531]
[1693531234445,0.07476193,217.03,214.83,0.16924531]
[1693531234748,0.07476193,217.02,214.84,0.16924531]
[1693531234941,0.07476193,217.02,214.79,1.6924531]
[1693531236046,0.07476193,217.01,214.79,1.6924531]
[1693531237349,0.07476193,217.01,214.8,0.16924531]
[1693531237550,0.07476193,217.01,214.81,0.16924531]
[1693531237751,0.07476193,217.0,214.82,0.16924531]
[1693531238050,0.07476193,217.0,214.83,0.16924531]
[1693531238249,0.07476193,217.0,214.78,1.6924531]
[1693531239850,0.07476193,216.99,214.78,1.6924531]
[1693531240846,0.0736737,216.99,214.78,1.6924531]
[1693531242651,0.14952387,217.0,214.78,1.6924531]
[1693531244749,0.14952387,216.99,214.78,1.6924531]
[1693531245749,0.14952387,216.98,214.78,1.6924531]
[1693531246752,0.14952387,216.97,214.78,1.6924531]
[1693531247753,0.14952387,216.95,214.78,1.6924531]
[1693531250747,0.14952387,216.96,214.78,1.6924531]
[1693531253151,0.14952387,216.97,214.79,1.86169841]
[1693531253356,0.14952387,216.98,214.79,1.6924531]
[1693531255654,0.14952387,216.99,214.79,1.6924531]
[1693531257453,0.14952387,217.0,214.79,1.6924531]
[1693531259660,0.14952387,217.01,214.79,1.6924531]
[1693531262358,0.14952387,217.02,214.79,1.6924531]
[1693531264456,0.14952387,217.02,214.8,1.86169841]
[1693531264656,0.14952387,217.02,214.81,0.16924531]
[1693531264861,0.14952387,217.03,214.82,0.16924531]
[1693531265059,0.14952387,217.03,214.83,0.16924531]
[1693531265259,0.14952387,217.03,214.84,0.16924531]
[1693531265457,0.14952387,217.02,214.85,0.16924531]
[1693531265658,0.14952387,217.02,214.86,0.16924531]
[1693531265859,0.14952387,217.02,214.87,0.16924531]
[1693531266062,0.14952387,217.02,214.8,1.6924531]
[1693531266664,0.14952387,217.03,214.8,1.6924531]
[1693531267665,0.14952387,217.04,214.8,1.6924531]
[1693531268464,0.14952387,217.04,212.81,20.0495153]
[1693531268465,0.14952387,217.04,214.81,0.16924531]
[1693531268665,0.14952387,217.04,214.78,1.6924531]
[1693531275167,0.14952387,217.05,214.78,1.6924531]
[1693531287581,0.14952387,217.06,214.78,1.6924531]
[1693531288484,0.14952387,217.06,214.79,1.86169841]
[1693531288683,0.14952387,217.06,214.8,0.16924531]
[1693531288881,0.14952387,217.06,214.81,0.16924531]
[1693531289083,0.14952387,217.06,214.82,0.16924531]
[1693531289384,0.14952387,217.06,214.83,0.16924531]